{"text_format":"1","workbook":"xlsx","n_sheets":3,"sheets":["Carnet de notes","Récapitulatif de l’étudiant","Critères de notation"],"not_rendered":{"charts":1,"images":1,"macros":1,"external_links":0,"defined_names":11,"comments":0,"pivot_tables":0},"unopened":[],"bounds":{"document_bytes":16777216,"sheet_cells":100000,"rows_first":2000,"rows_last":500,"rows_between":2000,"halvings":0,"cell_chars":16384,"cell_head_chars":4096},"cells_cut":0,"cells_raw":0,"read":"whole","date_system":"1900"}

{"sheet":"Carnet de notes","index":0,"n_rows":8,"n_cols":9,"rows_kept":8,"cut":false,"hidden":false,"merged":[]}
[null,"Nom de la classe"]
[null,"Nom du professeur",null,null,null,"Date du devoir ","2011-01-18","2011-01-25","2011-02-01"]
[null,null,null,null,"Nombre total de points possibles ",{"$f":"SUM(Nombretotaldepointsdevoirs[#Data])","v":90},20,20,50]
[null,"Nom de l’étudiant","Performances","Note","%","Nombre total de points acquis","Devoir écrit en classe 1","Devoir écrit en classe 2","Examen blanc"]
[null,"Étudiant 1",{"$f":"Donnéesdesétudiants[[#This Row],[Nombre total de points acquis]]","v":90},{"$f":"IFERROR(VLOOKUP(Donnéesdesétudiants[[#This Row],[%]],Tableaudesnotes[],2,TRUE),\"\")","v":"A+"},{"$f":"IFERROR(Donnéesdesétudiants[[#This Row],[Nombre total de points acquis]]/Nombretotaldepoints,\"\")","v":1},{"$f":"IFERROR(SUM(Donnéesdesétudiants[[#This Row],[Devoir écrit en classe 1]]:OFFSET(F5,,COUNTA(Nombretotaldepointsdevoirs[]))),\"\")","v":90},20,20,50]
[null,"Étudiant 2",{"$f":"Donnéesdesétudiants[[#This Row],[Nombre total de points acquis]]","v":60},{"$f":"IFERROR(VLOOKUP(Donnéesdesétudiants[[#This Row],[%]],Tableaudesnotes[],2,TRUE),\"\")","v":"D"},{"$f":"IFERROR(Donnéesdesétudiants[[#This Row],[Nombre total de points acquis]]/Nombretotaldepoints,\"\")","v":0.66666666666666663},{"$f":"IFERROR(SUM(Donnéesdesétudiants[[#This Row],[Devoir écrit en classe 1]]:OFFSET(F6,,COUNTA(Nombretotaldepointsdevoirs[]))),\"\")","v":60},10,10,40]
[null,"Étudiant 3",{"$f":"Donnéesdesétudiants[[#This Row],[Nombre total de points acquis]]","v":75},{"$f":"IFERROR(VLOOKUP(Donnéesdesétudiants[[#This Row],[%]],Tableaudesnotes[],2,TRUE),\"\")","v":"B"},{"$f":"IFERROR(Donnéesdesétudiants[[#This Row],[Nombre total de points acquis]]/Nombretotaldepoints,\"\")","v":0.83333333333333337},{"$f":"IFERROR(SUM(Donnéesdesétudiants[[#This Row],[Devoir écrit en classe 1]]:OFFSET(F7,,COUNTA(Nombretotaldepointsdevoirs[]))),\"\")","v":75},20,15,40]
[null,"Note moyenne/résultats",null,{"$f":"IFERROR(VLOOKUP(Donnéesdesétudiants[[#Totals],[%]],Tableaudesnotes[],2,TRUE),\"\")","v":"B"},{"$f":"SUBTOTAL(101,Donnéesdesétudiants[%])","v":0.83333333333333337},{"$f":"SUBTOTAL(101,Donnéesdesétudiants[Nombre total de points acquis])","v":75},{"$f":"SUBTOTAL(101,Donnéesdesétudiants[Devoir écrit en classe 1])","v":16.666666666666668},{"$f":"SUBTOTAL(101,Donnéesdesétudiants[Devoir écrit en classe 2])","v":15},{"$f":"SUBTOTAL(101,Donnéesdesétudiants[Examen blanc])","v":43.333333333333336}]

{"sheet":"Récapitulatif de l’étudiant","index":1,"n_rows":51,"n_cols":8,"rows_kept":51,"cut":false,"hidden":false,"merged":[[7,1,7,3],[11,1,11,2],[35,1,44,7],[0,0,0,4]]}
["Nom de votre établissement"]
[null,"Nom du professeur"]
[null,"Nom de la classe"]
[null,"Progression à ce jour"]
[null,"2011-09-22"]
[]
[null,"Nom de l’étudiant :"]
[null,"Étudiant 3"]
[]
[]
[null,"Classement de l’étudiant",null,"Note alphabétique","Pourcentage","Points obtenus par l’étudiant","Nombre total de points","Moyenne générale"]
[null,{"$f":"IFERROR(_xlfn.RANK.EQ(VLOOKUP(B8,Donnéesdesétudiants[],5,FALSE),Donnéesdesétudiants[Nombre total de points acquis]) & \" des \"&COUNTA(Donnéesdesétudiants[Nom de l’étudiant]) & \" Étudiants\",\"\")","v":"2 des 3 Étudiants"},null,{"$f":"IFERROR(VLOOKUP(Nomdel’étudiant,Donnéesdesétudiants[],3,FALSE),\"\")","v":"B"},{"$f":"IFERROR(VLOOKUP(Nomdel’étudiant,Donnéesdesétudiants[],4,FALSE),\"\")","v":0.83333333333333337},{"$f":"IFERROR(VLOOKUP(Nomdel’étudiant,Donnéesdesétudiants[],5,FALSE),\"\")","v":75},{"$f":"Nombretotaldepoints","v":90},{"$f":"IFERROR(VLOOKUP(E12,Tableaudesnotes[],3,TRUE),\"\")","v":3}]
[]
[]
[]
[]
[]
[]
[]
[]
[]
[]
[]
[]
[]
[]
[]
[]
[]
[]
[]
[]
[]
[]
[null,"Appréciations du professeur"]
[]
[]
[]
[]
[]
[]
[]
[]
[]
[]
[]
[]
[null,"Signature des parents (si besoin)"]
[]
[]
[null,"X",null,null,null,"Date :"]

{"sheet":"Critères de notation","index":2,"n_rows":20,"n_cols":4,"rows_kept":20,"cut":false,"hidden":false,"merged":[[4,1,4,3],[2,1,2,4]]}
[null,"Calcul de la note alphabétique"]
[]
[null,"Entrez les plages de pourcentage de chaque note alphabétique dans le tableau ci-dessous afin de personnaliser le modèle en fonction de vos critères de notation. "]
[]
[null,"Tableau NOTE et MOYENNE GÉNÉRALE\n(Utilisé pour calculer les notes des étudiants dans la feuille Carnet de notes)"]
[null,"Résultat","Note alphabétique obtenue","Moyenne générale"]
[null,0,"F",0]
[null,0.6,"D-",0.67]
[null,0.63,"D",1]
[null,0.67,"D+",1.33]
[null,0.7,"C-",1.67]
[null,0.73,"C",2]
[null,0.77,"C+",2.33]
[null,0.8,"B-",2.67]
[null,0.83,"B",3]
[null,0.87,"B+",3.33]
[null,0.9,"A-",3.67]
[null,0.93,"A",4]
[null,0.97,"A+",4]
[null,"Les résultats et les moyennes générales doivent être entrés dans l’ordre croissant."]